fUST/lending_fUST_20250702
["ID","MTS","AMOUNT","RATE_DAILY","PERIOD"]
[369007919,1751433057099,-460.0,0.00017589,2]
[369007921,1751433057109,-460.0,0.00017589,2]
[369007923,1751433057118,-460.0,0.00017589,2]
[369007925,1751433057128,-460.0,0.00017589,2]
[369007927,1751433057138,-460.0,0.00017589,2]
[369007929,1751433057147,-694.8,0.00017589,2]
[369007931,1751433057156,-460.0,0.00017589,2]
[369007933,1751433057166,-460.0,0.00017589,2]
[369007935,1751433057175,-481.54,0.00017589,2]
[369007937,1751433057185,-395.69721544,0.00017589,2]
[369007939,1751433057194,-460.0,0.00017589,2]
[369007941,1751433057204,-563.18,0.00017589,2]
[369007943,1751433057214,-460.0,0.00017589,2]
[369007945,1751433057223,-460.0,0.00017589,2]
[369007947,1751433057233,-460.0,0.00017589,2]
[369007949,1751433057243,-3296.63,0.00017589,2]
[369007951,1751433057253,-545.25,0.00017589,2]
[369007953,1751433057263,-507.77,0.00017589,2]
[369007955,1751433057273,-500.0,0.00017589,2]
[369007957,1751433057282,-460.0,0.00017589,2]
[369007959,1751433057291,-460.0,0.00017589,2]
[369007961,1751433057301,-460.0,0.00017589,2]
[369007963,1751433057310,-460.0,0.00017589,2]
[369007965,1751433057320,-777.38,0.00017589,2]
[369007967,1751433057329,-460.0,0.00017589,2]
[369007969,1751433057338,-460.0,0.00017589,2]
[369007971,1751433057348,-592.53,0.00017589,2]
[369007973,1751433057357,-699.33,0.00017589,2]
[369007975,1751433057366,-566.74,0.00017589,2]
[369007977,1751433057375,-151.0,0.00017589,2]
[369007979,1751433057385,-614.28,0.00017589,2]
[369007981,1751433057394,-460.0,0.00017589,2]
[369007983,1751433057404,-151.0,0.00017589,2]
[369007985,1751433057413,-3109.36,0.00017589,2]
[369007987,1751433057422,-494.896241,0.00017589,2]
[369007989,1751433057433,-599.74,0.00017589,2]
[369007991,1751433057442,-494.896241,0.00017589,2]
[369007993,1751433057452,-460.0,0.00017589,2]
[369007995,1751433057461,-460.0,0.00017589,2]
[369007997,1751433057470,-460.0,0.00017589,2]
[369007999,1751433057480,-151.0,0.00017589,2]
[369008001,1751433057490,-622.6,0.00017589,2]
[369008003,1751433057499,-460.0,0.00017589,2]
[369008005,1751433057508,-460.0,0.00017589,2]
[369008007,1751433057517,-152.946531,0.00017589,2]
[369008009,1751433057526,-460.0,0.00017589,2]
[369008011,1751433057535,-152.946531,0.00017589,2]
[369008013,1751433057545,-1255.98,0.00017589,2]
[369008015,1751433057554,-718.74,0.00017589,2]
[369008017,1751433057563,-460.0,0.00017589,2]
[369008019,1751433057573,-460.0,0.00017589,2]
[369008021,1751433057582,-460.0,0.00017589,2]
[369008023,1751433057592,-866.31,0.00017589,2]
[369008025,1751433057601,-460.0,0.00017589,2]
[369008027,1751433057611,-460.0,0.00017589,2]
[369008029,1751433057623,-460.0,0.00017589,2]
[369008031,1751433057632,-460.0,0.00017589,2]
[369008033,1751433057642,-151.0,0.00017589,2]
[369008034,1751433057651,-988.53,0.00017589,2]
[369008037,1751433057661,-460.0,0.00017589,2]
[369008038,1751433057671,-460.0,0.00017589,2]
[369008040,1751433057680,-263.71460414,0.00017589,2]
[369008042,1751433057692,-460.0,0.00017589,2]
[369008044,1751433057702,-572.23,0.00017589,2]
[369008046,1751433057712,-470.44,0.00017589,2]
[369008048,1751433057721,-460.0,0.00017589,2]
[369008050,1751433057731,-999.67009572,0.00017612,2]
[369008052,1751433057741,-500.0,0.00017668,2]
[369008054,1751433057750,-346.99750118,0.00017685,2]
[369008056,1751433057759,-460.0,0.00017685,2]
[369008058,1751433057768,-460.0,0.00017685,2]
[369008060,1751433057778,-460.0,0.00017685,2]
[369008062,1751433057787,-460.0,0.00017685,2]
[369008064,1751433057797,-460.0,0.00017685,2]
[369008066,1751433057806,-460.0,0.00017685,2]
[369008068,1751433057815,-460.0,0.00017685,2]
[369008070,1751433057825,-460.0,0.00017685,2]
[369008072,1751433057834,-460.0,0.00017685,2]
[369008074,1751433057843,-460.0,0.00017685,2]
[369008076,1751433057852,-460.0,0.00017685,2]
[369008078,1751433057862,-460.0,0.00017685,2]
[369008080,1751433057871,-460.0,0.00017685,2]
[369008082,1751433057881,-460.0,0.00017685,2]
[369008084,1751433057890,-460.0,0.00017685,2]
[369008086,1751433057899,-460.0,0.00017685,2]
[369008088,1751433057909,-433.03409351,0.00017685,2]
[369008090,1751433057918,-460.0,0.00017685,2]
[369008092,1751433057927,-460.0,0.00017685,2]
[369008094,1751433057936,-460.0,0.00017685,2]
[369008096,1751433057945,-460.0,0.00017685,2]
[369008098,1751433057954,-460.0,0.00017685,2]
[369008099,1751433057963,-460.0,0.00017685,2]
[369008101,1751433057972,-460.0,0.00017685,2]
[369008103,1751433057982,-460.0,0.00017685,2]
[369008105,1751433057991,-460.0,0.00017685,2]
[369008107,1751433058001,-460.0,0.00017685,2]
[369008109,1751433058010,-460.0,0.00017687,2]
[369008111,1751433058020,-460.0,0.00017687,2]
[369008113,1751433058029,-342.81463594,0.00017687,2]
[369008115,1751433058038,-464.61617947,0.00017687,2]
[369008117,1751433058048,-460.0,0.00017687,2]
[369008119,1751433058057,-460.0,0.00017687,2]
[369008121,1751433058066,-460.0,0.00017687,2]
[369008123,1751433058076,-460.0,0.00017687,2]
[369008125,1751433058085,-460.0,0.00017687,2]
[369008127,1751433058095,-460.0,0.00017687,2]
[369008129,1751433058104,-460.0,0.00017687,2]
[369008131,1751433058114,-460.0,0.00017687,2]
[369008133,1751433058123,-460.0,0.00017687,2]
[369008135,1751433058132,-460.0,0.00017687,2]
[369008137,1751433058142,-460.0,0.00017687,2]
[369008139,1751433058151,-460.0,0.00017687,2]
[369008141,1751433058161,-460.0,0.00017687,2]
[369008143,1751433058171,-460.0,0.00017687,2]
[369008145,1751433058180,-460.0,0.00017687,2]
[369008147,1751433058189,-286.99155683,0.00017687,2]
[369008149,1751433058199,-460.0,0.00017687,2]
[369008151,1751433058208,-460.0,0.00017687,2]
[369008153,1751433058218,-460.0,0.00017687,2]
[369008155,1751433058227,-460.0,0.00017687,2]
[369008157,1751433058237,-460.0,0.00017687,2]
[369008159,1751433058246,-460.0,0.00017687,2]
[369008161,1751433058255,-460.0,0.00017687,2]
[369008163,1751433058264,-460.0,0.00017687,2]
[369008165,1751433058273,-510.2,0.00017687,2]
[369008167,1751433058283,-526.76,0.00017687,2]
[369008169,1751433058293,-460.0,0.00017687,2]
[369008171,1751433058303,-460.0,0.00017687,2]
[369008173,1751433058312,-460.0,0.00017687,2]
[369008175,1751433058321,-460.0,0.00017687,2]
[369008177,1751433058331,-460.0,0.00017687,2]
[369008179,1751433058340,-460.0,0.00017687,2]
[369008181,1751433058350,-558.46,0.00017788,2]
[369008183,1751433058359,-460.0,0.00017788,2]
[369008185,1751433058368,-460.0,0.00017788,2]
[369008187,1751433058378,-460.0,0.00017788,2]
[369008189,1751433058387,-460.0,0.00017788,2]
[369008191,1751433058396,-460.0,0.00017788,2]
[369008193,1751433058405,-460.0,0.00017788,2]
[369008195,1751433058415,-460.0,0.00017788,2]
[369008197,1751433058424,-460.0,0.00017788,2]
[369008199,1751433058435,-460.0,0.00017788,2]
[369008201,1751433058445,-500.0,0.00017788,2]
[369008203,1751433058455,-656.54,0.00017788,2]
[369008205,1751433058464,-547.63,0.00017788,2]
[369008207,1751433058473,-460.0,0.00017788,2]
[369008209,1751433058483,-574.05,0.00017788,2]
[369008211,1751433058492,-463.3,0.00017788,2]
[369008213,1751433058501,-151.0,0.00017788,2]
[369008215,1751433058511,-460.0,0.00017788,2]
[369008217,1751433058520,-151.0,0.00017788,2]
[369008219,1751433058529,-460.0,0.00017788,2]
[369008221,1751433058539,-151.0,0.00017788,2]
[369008223,1751433058550,-641.83,0.00017788,2]
[369008225,1751433058559,-460.0,0.00017788,2]
[369008227,1751433058569,-460.0,0.00017788,2]
[369008229,1751433058578,-460.0,0.00017788,2]
[369008232,1751433058588,-291.006551,0.00017788,2]
[369008234,1751433058598,-460.0,0.00017788,2]
[369008236,1751433058608,-291.006551,0.00017788,2]
[369008238,1751433058621,-460.0,0.00017788,2]
[369008239,1751433058632,-460.0,0.00017788,2]
[369008241,1751433058643,-497.88,0.00017788,2]
[369008243,1751433058653,-1511.8,0.00017788,2]
[369008245,1751433058662,-460.0,0.00017788,2]
[369008247,1751433058672,-565.89,0.00017788,2]
[369008249,1751433058682,-594.16,0.00017788,2]
[369008251,1751433058693,-531.82,0.00017788,2]
[369008253,1751433058702,-460.0,0.00017788,2]
[369008255,1751433058712,-1425.93,0.00017788,2]
[369008257,1751433058721,-1001.54,0.00017788,2]
[369008259,1751433058731,-460.0,0.00017788,2]
[369008261,1751433058740,-460.0,0.00017788,2]
[369008263,1751433058750,-460.0,0.00017788,2]
[369008265,1751433058759,-3223.55,0.00017788,2]
[369008267,1751433058769,-877.02,0.00017788,2]
[369008269,1751433058779,-582.24,0.00017788,2]
[369008271,1751433058788,-1292.49,0.00017788,2]
[369008273,1751433058798,-460.0,0.00017788,2]
[369008281,1751433058919,-460.0,0.00017788,2]
[369008283,1751433058929,-460.0,0.00017788,2]
[369008286,1751433058939,-460.0,0.00017788,2]
[369008288,1751433058948,-495.53,0.00017788,2]
[369008290,1751433058957,-657.76,0.00017788,2]
[369008291,1751433058966,-460.0,0.00017788,2]
[369008293,1751433058975,-460.0,0.00017788,2]
[369008295,1751433058985,-460.0,0.00017788,2]
[369008298,1751433058994,-460.0,0.00017788,2]
[369008300,1751433059003,-300.88299185,0.00017792,2]
[369008302,1751433059015,-460.0,0.00017852,2]
[369008304,1751433059024,-460.0,0.00017852,2]
[369008306,1751433059034,-460.0,0.00017852,2]
[369008308,1751433059043,-532.53,0.00017852,2]
[369008310,1751433059054,-578.42,0.00017852,2]
[369008312,1751433059063,-1521.31,0.00017852,2]
[369008314,1751433059072,-460.0,0.00017852,2]
[369008316,1751433059081,-460.0,0.00017852,2]
[369008317,1751433059091,-460.0,0.00017852,2]
[369008320,1751433059100,-588.8,0.00017853,3]
[369008322,1751433059109,-460.0,0.00017853,2]
[369008324,1751433059119,-460.0,0.00017853,2]
[369008326,1751433059128,-460.0,0.00017853,2]
[369008328,1751433059137,-2702.15,0.00017853,2]
[369008330,1751433059147,-460.0,0.00017853,2]
[369008332,1751433059156,-460.0,0.00017853,2]
[369008333,1751433059165,-958.68,0.00017853,2]
[369008334,1751433059175,-2328.48,0.00017853,2]
[369008335,1751433059184,-460.0,0.00017853,2]
[369008336,1751433059194,-635.34,0.00017853,2]
[369008337,1751433059203,-473.13,0.00017853,2]
[369008338,1751433059213,-460.0,0.00017853,2]
[369008339,1751433059222,-1916.48,0.00017853,2]
[369008340,1751433059231,-460.0,0.00017853,2]
[369008341,1751433059241,-2072.21,0.00017853,2]
[369008342,1751433059250,-2340.65,0.00017853,2]
[369008343,1751433059259,-520.17,0.00017853,2]
[369008344,1751433059268,-460.0,0.00017853,2]
[369008345,1751433059277,-460.0,0.00017853,2]
[369008346,1751433059286,-601.75,0.00017853,2]
[369008347,1751433059295,-1381.3,0.00017853,2]
[369008348,1751433059304,-894.46,0.00017853,2]
[369008349,1751433059313,-460.0,0.00017853,2]
[369008350,1751433059322,-684.17,0.00017853,2]
[369008351,1751433059332,-1925.2,0.00017854,3]
[369008352,1751433059341,-962.6,0.00017854,3]
[369008353,1751433059350,-481.3,0.00017854,3]
[369008354,1751433059359,-460.0,0.00017861,2]
[369008355,1751433059368,-460.0,0.00017861,2]
[369008356,1751433059378,-460.0,0.00017861,2]
[369008357,1751433059387,-460.0,0.00017861,2]
[369008358,1751433059398,-460.0,0.00017861,2]
[369008359,1751433059407,-460.0,0.00017861,2]
[369008360,1751433059415,-460.0,0.00017861,2]
[369008361,1751433059425,-460.0,0.00017863,2]
[369008362,1751433059434,-460.0,0.00017863,2]
[369008363,1751433059443,-460.0,0.00017863,2]
[369008364,1751433059453,-483.72,0.00017863,2]
[369008365,1751433059463,-460.0,0.00017863,2]
[369008366,1751433059472,-460.0,0.00017863,2]
[369008367,1751433059482,-460.0,0.00017863,2]
[369008368,1751433059491,-460.0,0.00017863,2]
[369008369,1751433059500,-460.0,0.00017863,2]
[369008370,1751433059510,-460.0,0.00017863,2]
[369008371,1751433059519,-460.0,0.00017863,2]
[369008372,1751433059528,-460.0,0.00017863,2]
[369008373,1751433059538,-272.831369,0.00017863,2]
[369008374,1751433059548,-460.0,0.00017863,2]
[369008375,1751433059557,-460.0,0.00017863,2]
[369008376,1751433059566,-460.0,0.00017863,2]
[369008377,1751433059577,-460.0,0.00017863,2]
[369008378,1751433059587,-460.0,0.00017863,2]
[369008379,1751433059597,-460.0,0.00017863,2]
[369008380,1751433059605,-460.0,0.00017863,2]
[369008381,1751433059617,-430.0,0.00017863,2]
[369008382,1751433059630,-460.0,0.00017863,2]
[369008383,1751433059639,-460.0,0.00017863,2]
[369008384,1751433059649,-460.0,0.00017863,2]
[369008385,1751433059659,-460.0,0.00017863,2]
[369008386,1751433059668,-505.01907499,0.00017863,2]
[369008387,1751433059677,-460.0,0.00017863,2]
[369008388,1751433059687,-460.0,0.00017863,2]
[369008389,1751433059697,-465.62676226,0.00017863,2]
[369008390,1751433059707,-460.0,0.00017863,2]
[369008391,1751433059716,-460.0,0.00017863,2]
[369008392,1751433059727,-460.0,0.00017863,2]
[369008393,1751433059738,-460.0,0.00017863,2]
[369008394,1751433059753,-578.76477001,0.00017863,2]
[369008395,1751433059763,-460.0,0.00017863,2]
[369008396,1751433059772,-460.0,0.00017863,2]
[369008397,1751433059781,-460.0,0.00017863,2]
[369008398,1751433059790,-676.67,0.00017863,2]
[369008399,1751433059800,-460.0,0.00017863,2]
[369008400,1751433059809,-460.0,0.00017863,2]
[369008401,1751433059818,-460.0,0.00017863,2]
[369008402,1751433059828,-460.0,0.00017863,2]
[369008403,1751433059837,-460.0,0.00017863,2]
[369008404,1751433059847,-469.69210633,0.00017863,2]
[369008405,1751433059856,-460.0,0.00017863,2]
[369008406,1751433059874,-460.0,0.00017863,2]
[369008407,1751433059897,-460.0,0.00017863,2]
[369008408,1751433059911,-460.0,0.00017863,2]
[369008409,1751433059922,-460.0,0.00017863,2]
[369008410,1751433059932,-564.62,0.00017863,2]
[369008411,1751433059941,-548.66,0.00017863,2]
[369008412,1751433059951,-460.0,0.00017863,2]
[369008413,1751433059960,-506.04,0.00017863,2]
[369008414,1751433059970,-460.0,0.00017863,2]
[369008415,1751433059979,-460.0,0.00017863,2]
[369008416,1751433059988,-460.0,0.00017863,2]
[369008417,1751433059997,-734.34,0.00017863,2]
[369008418,1751433060007,-460.0,0.00017863,2]
[369008419,1751433060016,-460.0,0.00017863,2]
[369008420,1751433060025,-460.0,0.00017863,2]
[369008421,1751433060035,-460.0,0.00017863,2]
[369008422,1751433060044,-460.0,0.00017863,2]
[369008423,1751433060053,-460.0,0.00017863,2]
[369008424,1751433060063,-460.0,0.00017863,2]
[369008425,1751433060072,-460.0,0.00017863,2]
[369008426,1751433060081,-460.0,0.00017863,2]
[369008427,1751433060090,-460.0,0.00017863,2]
[369008428,1751433060099,-460.0,0.00017863,2]
[369008429,1751433060109,-694.8,0.00017863,2]
[369008430,1751433060118,-460.0,0.00017863,2]
[369008431,1751433060128,-460.0,0.00017863,2]
[369008432,1751433060137,-481.54,0.00017863,2]
[369008433,1751433060146,-460.0,0.00017863,2]
[369008434,1751433060155,-563.18,0.00017863,2]
[369008435,1751433060164,-460.0,0.00017863,2]
[369008436,1751433060173,-460.0,0.00017863,2]
[369008437,1751433060182,-460.0,0.00017863,2]
[369008438,1751433060191,-3296.63,0.00017863,2]
[369008439,1751433060202,-507.77,0.00017863,2]
[369008440,1751433060213,-500.0,0.00017863,2]
[369008441,1751433060222,-545.25,0.00017863,2]
[369008442,1751433060232,-460.0,0.00017863,2]
[369008443,1751433060242,-460.0,0.00017863,2]
[369008444,1751433060251,-460.0,0.00017863,2]
[369008445,1751433060261,-460.0,0.00017863,2]
[369008446,1751433060271,-777.38,0.00017863,2]
[369008447,1751433060280,-460.0,0.00017863,2]
[369008448,1751433060290,-460.0,0.00017863,2]
[369008449,1751433060299,-592.53,0.00017863,2]
[369008450,1751433060308,-699.33,0.00017863,2]
[369008451,1751433060318,-566.74,0.00017863,2]
[369008452,1751433060327,-614.28,0.00017863,2]
[369008453,1751433060336,-460.0,0.00017863,2]
[369008454,1751433060346,-3109.36,0.00017863,2]
[369008455,1751433060355,-599.74,0.00017863,2]
[369008456,1751433060365,-460.0,0.00017863,2]
[369008457,1751433060375,-460.0,0.00017863,2]
[369008458,1751433060384,-460.0,0.00017863,2]
[369008459,1751433060394,-622.6,0.00017863,2]
[369008460,1751433060404,-460.0,0.00017863,2]
[369008461,1751433060413,-460.0,0.00017863,2]
[369008462,1751433060423,-460.0,0.00017863,2]
[369008463,1751433060433,-1255.98,0.00017863,2]
[369008464,1751433060443,-718.74,0.00017863,2]
[369008465,1751433060454,-460.0,0.00017863,2]
[369008466,1751433060464,-460.0,0.00017863,2]
[369008467,1751433060474,-866.31,0.00017863,2]
[369008468,1751433060483,-460.0,0.00017863,2]
[369008469,1751433060495,-460.0,0.00017863,2]
[369008470,1751433060505,-460.0,0.00017863,2]
[369008471,1751433060514,-460.0,0.00017863,2]
[369008472,1751433060524,-988.53,0.00017863,2]
[369008473,1751433060533,-460.0,0.00017863,2]
[369008474,1751433060542,-460.0,0.00017863,2]
[369008475,1751433060552,-460.0,0.00017863,2]
[369008476,1751433060561,-572.23,0.00017863,2]
[369008477,1751433060570,-470.44,0.00017863,2]
[369008478,1751433060579,-460.0,0.00017863,2]
[369008479,1751433060589,-1500.0,0.00017868,2]
[369008480,1751433060598,-1500.0,0.00017868,2]
[369008481,1751433060608,-692.88601437,0.00017868,2]
[369008482,1751433060620,-904.312274,0.00017868,2]
[369008483,1751433060629,-1500.0,0.00017868,2]
[369008484,1751433060639,-151.0,0.000179,2]
[369008485,1751433060648,-707.88345514,0.000179,2]
[369008486,1751433060659,-341.28550224,0.00017921,2]
[369008487,1751433060669,-460.0,0.00017959,2]
[369008488,1751433060678,-460.0,0.00017959,2]
[369008489,1751433060687,-460.0,0.00017959,2]
[369008490,1751433060697,-364.6262615,0.00017959,2]
[369008491,1751433060707,-460.0,0.00017959,2]
[369008492,1751433060716,-460.0,0.00017959,2]
[369008493,1751433060725,-460.0,0.00017959,2]
[369008494,1751433060735,-460.0,0.00017959,2]
[369008495,1751433060744,-460.0,0.00017959,2]
[369008496,1751433060753,-462.86962184,0.00017959,2]
[369008497,1751433060763,-460.0,0.00017959,2]
[369008498,1751433060772,-460.0,0.00017959,2]
[369008499,1751433060782,-460.0,0.00017959,2]
[369008500,1751433060791,-460.0,0.00017959,2]
[369008501,1751433060801,-460.0,0.00017959,2]
[369008502,1751433060811,-460.0,0.00017959,2]
[369008503,1751433060823,-460.0,0.00017959,2]
[369008504,1751433060832,-460.0,0.00017959,2]
[369008505,1751433060842,-460.0,0.00017959,2]
[369008506,1751433060852,-460.0,0.00017959,2]
[369008507,1751433060861,-460.0,0.00017959,2]
[369008508,1751433060871,-460.0,0.00017961,2]
[369008509,1751433060880,-460.0,0.00017961,2]
[369008510,1751433060890,-527.29341352,0.00017961,2]
[369008511,1751433060899,-460.0,0.00017961,2]
[369008512,1751433060908,-460.0,0.00017961,2]
[369008513,1751433060918,-460.0,0.00017961,2]
[369008514,1751433060927,-460.0,0.00017961,2]
[369008515,1751433060937,-460.0,0.00017961,2]
[369008516,1751433060946,-465.5327969,0.00017961,2]
[369008517,1751433060955,-460.0,0.00017961,2]
[369008518,1751433060965,-460.0,0.00017961,2]
[369008519,1751433060975,-460.0,0.00017961,2]
[369008520,1751433060984,-460.0,0.00017961,2]
[369008521,1751433060994,-580.0,0.00017961,2]
[369008522,1751433061003,-460.0,0.00017961,2]
[369008523,1751433061013,-460.0,0.00017961,2]
[369008524,1751433061022,-460.0,0.00017961,2]
[369008525,1751433061031,-500.0,0.00017961,2]
[369008526,1751433061041,-460.0,0.00017961,2]
[369008527,1751433061050,-460.0,0.00017961,2]
[369008528,1751433061060,-460.0,0.00017961,2]
[369008529,1751433061070,-510.2,0.00017961,2]
[369008530,1751433061079,-526.76,0.00017961,2]
[369008531,1751433061089,-460.0,0.00017961,2]
[369008532,1751433061208,-399.28086384,0.00017961,2]
[369008533,1751433061218,-460.0,0.00017961,2]
[369008534,1751433061227,-460.0,0.00017961,2]
[369008535,1751433061236,-209.194205,0.00017961,2]
[369008536,1751433061246,-460.0,0.00017961,2]
[369008537,1751433061255,-209.194205,0.00017961,2]
[369008538,1751433061265,-172.509072,0.00017961,2]
[369008539,1751433061274,-172.509072,0.00017961,2]
[369008540,1751433061285,-310.540744,0.00017961,2]
[369008541,1751433061294,-310.540744,0.00017961,2]
[369008542,1751433061303,-151.0,0.00017961,2]
[369008543,1751433061312,-151.656345,0.00017961,2]
[369008544,1751433061322,-151.0,0.00017961,2]
[369008545,1751433061331,-151.0,0.00017961,2]
[369008546,1751433061340,-519.01678117,0.00017993,2]
[369008547,1751433061351,-177.22,0.00018,2]
[369008548,1751433061360,-177.22,0.00018,2]
[369008549,1751433061369,-177.22,0.00018,2]
[369008550,1751433061379,-2427.06588697,0.00018,2]
[369008551,1751433061389,-221.37150004,0.00018,2]
[369008552,1751433061398,-863.0,0.00018011,2]
[369008553,1751433061408,-420.0,0.00018022,2]
[369008554,1751433061418,-420.0,0.00018022,2]
[369008555,1751433061427,-558.46,0.00018062,2]
[369008556,1751433061437,-460.0,0.00018062,2]
[369008557,1751433061447,-460.0,0.00018062,2]
[369008558,1751433061456,-460.0,0.00018062,2]
[369008559,1751433061465,-460.0,0.00018062,2]
[369008560,1751433061475,-460.0,0.00018062,2]
[369008561,1751433061485,-460.0,0.00018062,2]
[369008562,1751433061494,-460.0,0.00018062,2]
[369008563,1751433061504,-460.0,0.00018062,2]
[369008564,1751433061513,-460.0,0.00018062,2]
[369008565,1751433061523,-500.0,0.00018062,2]
[369008566,1751433061532,-656.54,0.00018062,2]
[369008567,1751433061542,-547.63,0.00018062,2]
[369008568,1751433061552,-460.0,0.00018062,2]
[369008569,1751433061561,-574.05,0.00018062,2]
[369008570,1751433061571,-463.3,0.00018062,2]
[369008571,1751433061582,-460.0,0.00018062,2]
[369008572,1751433061591,-641.83,0.00018062,2]
[369008573,1751433061602,-460.0,0.00018062,2]
[369008574,1751433061613,-460.0,0.00018062,2]
[369008575,1751433061627,-460.0,0.00018062,2]
[369008576,1751433061639,-460.0,0.00018062,2]
[369008577,1751433061648,-460.0,0.00018062,2]
[369008578,1751433061658,-460.0,0.00018062,2]
[369008579,1751433061670,-497.88,0.00018062,2]
[369008580,1751433061680,-1511.8,0.00018062,2]
[369008581,1751433061689,-460.0,0.00018062,2]
[369008582,1751433061700,-565.89,0.00018062,2]
[369008583,1751433061710,-594.16,0.00018062,2]
[369008584,1751433061719,-531.82,0.00018062,2]
[369008585,1751433061730,-460.0,0.00018062,2]
[369008586,1751433061742,-1425.93,0.00018062,2]
[369008587,1751433061752,-1001.54,0.00018062,2]
[369008588,1751433061761,-460.0,0.00018062,2]
[369008589,1751433061770,-151.0,0.00018062,2]
[369008590,1751433061780,-460.0,0.00018062,2]
[369008591,1751433061790,-460.0,0.00018062,2]
[369008592,1751433061800,-151.0,0.00018062,2]
[369008593,1751433061811,-3223.55,0.00018062,2]
[369008594,1751433061821,-877.02,0.00018062,2]
[369008595,1751433061831,-582.24,0.00018062,2]
[369008596,1751433061842,-1292.49,0.00018062,2]
[369008597,1751433061852,-460.0,0.00018062,2]
[369008598,1751433061862,-460.0,0.00018062,2]
[369008599,1751433061872,-460.0,0.00018062,2]
[369008600,1751433061882,-460.0,0.00018062,2]
[369008601,1751433061891,-657.76,0.00018062,2]
[369008602,1751433061901,-460.0,0.00018062,2]
[369008603,1751433061912,-460.0,0.00018062,2]
[369008604,1751433061922,-460.0,0.00018062,2]
[369008605,1751433061931,-460.0,0.00018062,2]
[369008606,1751433061941,-2864.9618803,0.00018082,2]
[369008607,1751433061951,-1353.0,0.00018112,2]
[369008608,1751433061960,-738.63740175,0.00018121,2]
[369008609,1751433061970,-460.0,0.00018126,2]
[369008610,1751433061980,-460.0,0.00018126,2]
[369008611,1751433061992,-532.53,0.00018126,2]
[369008612,1751433062003,-578.42,0.00018126,2]
[369008613,1751433062014,-1521.31,0.00018126,2]
[369008614,1751433062025,-460.0,0.00018126,2]
[369008615,1751433062036,-498.02246902,0.00018126,2]
[369008616,1751433062047,-460.0,0.00018127,2]
[369008617,1751433062058,-460.0,0.00018127,2]
[369008618,1751433062067,-460.0,0.00018127,2]
[369008619,1751433062077,-2702.15,0.00018127,2]
[369008620,1751433062087,-460.0,0.00018127,2]
[369008621,1751433062096,-460.0,0.00018127,2]
[369008622,1751433062105,-958.68,0.00018127,2]
[369008623,1751433062115,-2328.48,0.00018127,2]
[369008624,1751433062125,-460.0,0.00018127,2]
[369008625,1751433062135,-635.34,0.00018127,2]
[369008626,1751433062145,-473.13,0.00018127,2]
[369008627,1751433062155,-460.0,0.00018127,2]